[Event "10th Menchik Memorial 2025"]
[Site "London"]
[Date "2025.03.21"]
[Round "3.5"]
[White "Hunt, Harriet V"]
[Black "Schulze, Lara"]
[Result "1-0"]
[Annotator "TA"]
[ECO "B23"]
[WhiteElo "2296"]
[BlackElo "2313"]
[PlyCount "89"]
[EventDate "2025.03.11"]
[EventType "tourn"]
[EventCountry "ENG"]
[SourceTitle "playchess.com"]
[Source "ChessBase"]
[SourceQuality "1"]
[TimeControl "5400+30"]

{[%evp 9,89,12,6,-20,14,8,14,29,28,6,0,-40,-14,-18,-9,0,32,-20,6,10,66,50,75,38,77,36,87,86,89,85,88,92,126,113,124,102,95,100,87,26,33,28,32,0,0,0,0,0,0,-18,-22,-86,-31,-28,50,37,55,0,44,43,62,41,134,123,127,122,111,47,38,34,125,110,131,137,429,437,1639,1537,29997,29998,29998,29999]} 1. e4 {[%emt 0:00:02]} c5 {[%emt 0:00:19]} 2. Nc3 {[%emt 0:00:22]} Nc6 {[%emt 0:00:10]} 3. Bb5 {[%emt 0:00:23]} Nd4 {[%emt 0:00:20]} 4. Nf3 {[%emt 0:00:28]} a6 {[%emt 0:00:31]} 5. Bd3 {[%emt 0:00:23]} g6 {[%emt 0:01:28]} 6. b4 {[%emt 0:01:06] B23: Closed Sicilian: Lines without g3.} d6 {[%emt 0:06:42]} 7. Rb1 {[%emt 0:04:34]} Nf6 {[%emt 0:19:50]} 8. O-O {[%emt 0:25:15] The position is equal.} Bg7 {[%emt 0:04:29]} 9. h3 {[%emt 0:05:24]} O-O {[%emt 0:02:29]} 10. Re1 {[%emt 0:00:28]} cxb4 $146 {[%emt 0:16:26]} (10... Nd7 11. Bf1 Ne5 12. Nxe5 Bxe5 13. bxc5 dxc5 14. Na4 Bc7 15. d3 b5 16. Nc3 Be6 {1-0 Bauml,B (1992)-Tyrrell,B (1855) Dulles Skyline op 3rd 2024 (7)}) 11. Rxb4 {[%emt 0:00:50]} Nc6 {[%emt 0:00:46]} 12. Rb1 {[%emt 0:00:55]} d5 {[%emt 0:00:51]} 13. Ba3 {[%emt 0:13:06]} (13. Nxd5 $14 Nxd5 14. exd5 Qxd5 15. Bb2) 13... dxe4 {[%emt 0:09:41]} 14. Nxe4 {[%emt 0:00:26]} Nxe4 {[%emt 0:01:20]} (14... Qc7 $11) 15. Bxe4 $14 {[%emt 0:00:22]} Re8 {[%emt 0:00:38]} 16. c3 {[%emt 0:07:23]} (16. c4 $5) 16... Qc7 {[%emt 0:04:06]} 17. Bc5 {[%emt 0:07:01]} Rb8 {[%emt 0:06:54]} (17... e5 $14) 18. Bb6 $16 {[%emt 0:03:47]} Qf4 {[%emt 0:05:28]} 19. Qa4 {[%emt 0:03:37]} Qd6 {[%emt 0:03:47]} 20. d4 {[%emt 0:03:39]} Bd7 {[%emt 0:00:12][%cal Oc6d4]} 21. Qb3 {[%emt 0:00:45]} Qf4 {[%emt 0:03:10]} 22. Bd5 {[%emt 0:07:50]} e6 {[%emt 0:01:17]} 23. Be4 {[%emt 0:00:54]} Rbc8 {[%emt 0:01:09]} 24. Bc5 {[%emt 0:02:16]} (24. a4 $16) 24... b5 $11 {[%emt 0:03:57]} 25. Qa3 {[%emt 0:00:23]} Qc7 {[%emt 0:02:03]} 26. Bd6 {[%emt 0:04:40]} Qa5 {[%emt 0:00:50]} 27. Qb2 {[%emt 0:01:03]} Qb6 {[%emt 0:01:28][%cal Oc6d4]} 28. Bc5 {[%emt 0:01:13]} Qc7 {[%emt 0:00:12]} 29. Nd2 {[%emt 0:01:51]} e5 {[%emt 0:02:41]} 30. d5 {[%emt 0:01:52]} (30. Rbd1 $11 {keeps the balance.}) 30... Na5 {[%emt 0:00:03]} ({Black should try} 30... Nd8 $1 $17 31. Bb4 a5) 31. Bb4 $15 {[%emt 0:00:07]} Nc4 {[%emt 0:00:48]} (31... Nb7 $11) 32. Nxc4 $14 {[%emt 0:00:03]} Qxc4 {[%emt 0:00:21]} 33. Rbd1 {[%emt 0:01:05]} (33. Qa3 $14) 33... Qc7 {[%emt 0:01:03]} 34. d6 $36 {[%emt 0:00:58][%mdl 2048] White has the initiative.} Qb6 {[%emt 0:00:09]} 35. Qa3 $1 {[%emt 0:00:17]} Bf8 {[%emt 0:00:21]} (35... Bf6 $14) 36. Bd5 $16 {[%emt 0:00:43]} Kg7 {[%emt 0:00:29]} 37. Re3 {[%emt 0:01:18][%cal Be1e3,Be3f3,Bf3f5][%mdl 32]} f6 {[%emt 0:01:28]} ({Don't blunder} 37... a5 $2 38. Qxa5 Qb8 (38... Qxa5 $2 39. Bxa5 Ra8 40. Bxa8 $18) 39. Qa6 $18) 38. Qb3 {[%emt 0:00:44]} (38. Ree1 $16) 38... a5 {[%emt 0:00:26]} (38... Bxd6 $2 39. Bxd6 Qxd6 40. Bb7 $18) 39. Ba3 {[%emt 0:00:41]} a4 {[%emt 0:00:49]} (39... Bxd6 $2 40. Bxd6 (40. Bf7 a4 $15) 40... Qxd6 41. Bb7 $18) (39... Red8 $14) 40. Qb4 {[%emt 0:00:16] Hoping for c4.} Rb8 {[%emt 0:00:39]} 41. Rf3 $1 {[%emt 0:00:41] White is more active.} Red8 $2 {[%emt 0:00:37][%mdl 8192] [#] A mistake that costs the game.} (41... e4 $16 42. Re3 (42. Bxe4 Re6 $18) 42... Red8 43. Bxe4 (43. Qxe4 Bxd6 44. Bxd6 Qxd6 $16) (43. Rxe4 Bf5 $18) 43... Re8) 42. Qh4 $1 $18 {[%emt 0:00:57]} Bf5 {[%emt 0:00:23] [#]} (42... f5 $142 43. Re3 Re8 (43... Bxd6 $2 {perishes.} 44. Bg8 $18)) 43. Rxf5 $1 {[%emt 0:01:00]} Bxd6 {[%emt 0:00:38]} (43... Kh8 44. Rxf6) 44. Qxf6+ {[%emt 0:00:06]} Kh6 {[%emt 0:00:03]} 45. Bc1+ {[%emt 0:00:08] Weighted Error Value: White=0.16 (very precise) /Black=0.52  Loses game:     	---       	Black=1      Mistake:       	White=5     	Black=7      Inaccurate:     	White=4     	Black=8      OK:         	White=13    	Black=15     Best:        	White=3     	---        Strong:       	White=3     	---        Brilliant:      	White=1     	---} 1-0